[Event "*** Titled Tuesday Blitz"]
[Site "Chess.com"]
[Date "2020.03.03"]
[Round "7"]
[White "Ali_rastbod"]
[Black "Sanan_Sjugirov"]
[Result "0-1"]
[WhiteElo "2662"]
[BlackElo "2839"]
[TimeControl "180+1"]
[EndTime "10:12:55 PST"]
[Termination "Sanan_Sjugirov won by resignation"]

1. Nf3 {[%clk 0:03:00.9]} 1... g6 {[%clk 0:02:59.9]} 2. d4 {[%clk 0:02:56.4]}
2... Bg7 {[%clk 0:02:59.6]} 3. c4 {[%clk 0:02:56]} 3... d6 {[%clk 0:02:57.4]} 4.
g3 {[%clk 0:02:55.2]} 4... Nd7 {[%clk 0:02:53]} 5. Bg2 {[%clk 0:02:53.2]} 5...
e5 {[%clk 0:02:52.8]} 6. O-O {[%clk 0:02:53.6]} 6... Ne7 {[%clk 0:02:52.3]} 7.
Nc3 {[%clk 0:02:35.5]} 7... O-O {[%clk 0:02:51.8]} 8. Re1 {[%clk 0:02:13]} 8...
h6 {[%clk 0:02:45.4]} 9. dxe5 {[%clk 0:02:10.1]} 9... dxe5 {[%clk 0:02:45]} 10.
Qc2 {[%clk 0:02:07.4]} 10... Nc5 {[%clk 0:02:27.3]} 11. b4 {[%clk 0:01:54.8]}
11... Ne6 {[%clk 0:02:24.7]} 12. e3 {[%clk 0:01:50.8]} 12... f5 {[%clk 0:02:19]}
13. Bb2 {[%clk 0:01:48.7]} 13... e4 {[%clk 0:02:16.6]} 14. Red1 {[%clk
0:01:47.7]} 14... Qe8 {[%clk 0:02:15.2]} 15. Nd4 {[%clk 0:01:46.4]} 15... Nxd4
{[%clk 0:02:10.1]} 16. exd4 {[%clk 0:01:47.3]} 16... Nc6 {[%clk 0:02:05.6]} 17.
Nd5 {[%clk 0:01:47.3]} 17... Qf7 {[%clk 0:02:00]} 18. a4 {[%clk 0:01:46.7]}
18... Be6 {[%clk 0:01:53.8]} 19. b5 {[%clk 0:00:46]} 19... Bxd5 {[%clk
0:01:52.8]} 20. cxd5 {[%clk 0:00:46.9]} 20... Nb4 {[%clk 0:01:51.5]} 21. Qb3
{[%clk 0:00:47.3]} 21... Nxd5 {[%clk 0:01:45.2]} 22. Rac1 {[%clk 0:00:47.2]}
22... Rfd8 {[%clk 0:01:41.5]} 23. Rc5 {[%clk 0:00:47.1]} 23... Bf8 {[%clk
0:01:37.6]} 24. Bf1 {[%clk 0:00:43.8]} 24... Bxc5 {[%clk 0:01:31.9]} 25. dxc5
{[%clk 0:00:44.7]} 25... c6 {[%clk 0:01:31.4]} 26. Bc4 {[%clk 0:00:44.4]} 26...
Kh7 {[%clk 0:01:28.9]} 27. Ba1 {[%clk 0:00:43.3]} 27... f4 {[%clk 0:01:21.3]}
28. Rd4 {[%clk 0:00:42.7]} 28... fxg3 {[%clk 0:01:00.2]} 29. Qxg3 {[%clk
0:00:43.6]} 29... Re8 {[%clk 0:00:54.1]} 30. Rxd5 {[%clk 0:00:27.6]} 30... cxd5
{[%clk 0:00:48.8]} 31. Bxd5 {[%clk 0:00:28.5]} 31... Qe7 {[%clk 0:00:44.5]} 32.
c6 {[%clk 0:00:28.1]} 32... Rad8 {[%clk 0:00:40]} 33. Bb3 {[%clk 0:00:19.8]}
33... bxc6 {[%clk 0:00:38.2]} 34. bxc6 {[%clk 0:00:19.8]} 34... e3 {[%clk
0:00:36.3]} 35. fxe3 {[%clk 0:00:12.9]} 35... Qxe3+ {[%clk 0:00:35.8]} 36. Qxe3
{[%clk 0:00:13.8]} 36... Rxe3 {[%clk 0:00:36.1]} 37. c7 {[%clk 0:00:14.2]} 37...
Rc8 {[%clk 0:00:35.7]} 0-1

[Event "*** Titled Tuesday Blitz"]
[Site "Chess.com"]
[Date "2020.03.03"]
[Round "7"]
[White "NguyenHlb"]
[Black "MaxLeto"]
[Result "0-1"]
[WhiteElo "2287"]
[BlackElo "2408"]
[TimeControl "180+1"]
[EndTime "10:13:02 PST"]
[Termination "MaxLeto won by checkmate"]

1. d4 {[%clk 0:02:49.3]} 1... d5 {[%clk 0:02:59.7]} 2. c4 {[%clk 0:02:49]} 2...
e6 {[%clk 0:03:00]} 3. Nc3 {[%clk 0:02:48.6]} 3... Nf6 {[%clk 0:02:59.6]} 4.
cxd5 {[%clk 0:02:48.5]} 4... exd5 {[%clk 0:02:59.8]} 5. Bg5 {[%clk 0:02:48.7]}
5... c6 {[%clk 0:02:59.4]} 6. e3 {[%clk 0:02:48.6]} 6... Be7 {[%clk 0:02:51.6]}
7. Bd3 {[%clk 0:02:48.5]} 7... Bg4 {[%clk 0:02:50.9]} 8. f3 {[%clk 0:02:42.6]}
8... Bh5 {[%clk 0:02:50.4]} 9. Nge2 {[%clk 0:02:40.9]} 9... Bg6 {[%clk
0:02:50.4]} 10. Bxg6 {[%clk 0:02:38.5]} 10... hxg6 {[%clk 0:02:51.3]} 11. O-O
{[%clk 0:02:34.8]} 11... Qc7 {[%clk 0:01:53.6]} 12. Bf4 {[%clk 0:02:32.5]} 12...
Bd6 {[%clk 0:01:54.1]} 13. Rc1 {[%clk 0:02:25.6]} 13... Bxf4 {[%clk 0:01:50.1]}
14. Nxf4 {[%clk 0:02:22.5]} 14... g5 {[%clk 0:01:48]} 15. Nh3 {[%clk 0:02:22.2]}
15... Nbd7 {[%clk 0:01:35]} 16. e4 {[%clk 0:02:21.3]} 16... dxe4 {[%clk
0:00:54.9]} 17. fxe4 {[%clk 0:02:22.2]} 17... g4 {[%clk 0:00:55.4]} 18. Nf4
{[%clk 0:02:18.1]} 18... g5 {[%clk 0:00:56]} 19. e5 {[%clk 0:02:01.7]} 19...
gxf4 {[%clk 0:00:55.5]} 20. exf6 {[%clk 0:01:32.3]} 20... f3 {[%clk 0:00:47.2]}
21. g3 {[%clk 0:01:27.7]} 21... O-O-O {[%clk 0:00:38.9]} 22. Nb5 {[%clk
0:01:20.8]} 22... Qb8 {[%clk 0:00:26.1]} 23. Qd3 {[%clk 0:01:14.8]} 23... Rh5
{[%clk 0:00:18.7]} 24. d5 {[%clk 0:01:07.5]} 24... Nxf6 {[%clk 0:00:16.8]} 25.
d6 {[%clk 0:00:58.5]} 25... a6 {[%clk 0:00:10.4]} 26. Nc7 {[%clk 0:00:53.5]}
26... Qxc7 {[%clk 0:00:10.4]} 27. Qc2 {[%clk 0:00:23]} 27... Rxd6 {[%clk
0:00:09.2]} 28. Rfe1 {[%clk 0:00:21.5]} 28... Qb6+ {[%clk 0:00:09.3]} 29. Kh1
{[%clk 0:00:20.4]} 29... Nd5 {[%clk 0:00:05.9]} 30. Qe4 {[%clk 0:00:19.7]} 30...
Rxh2+ {[%clk 0:00:04.5]} 31. Kxh2 {[%clk 0:00:17.8]} 31... Rh6# {[%clk
0:00:05.4]} 0-1

[Event "*** Titled Tuesday Blitz"]
[Site "Chess.com"]
[Date "2020.03.03"]
[Round "7"]
[White "Astaneh"]
[Black "Pultis"]
[Result "1-0"]
[WhiteElo "2621"]
[BlackElo "2769"]
[TimeControl "180+1"]
[EndTime "10:13:04 PST"]
[Termination "Astaneh won by resignation"]

1. e4 {[%clk 0:03:00.9]} 1... e5 {[%clk 0:02:57.2]} 2. Nf3 {[%clk 0:03:00.7]}
2... Nc6 {[%clk 0:02:55.8]} 3. Bc4 {[%clk 0:03:01.3]} 3... Nf6 {[%clk
0:02:55.5]} 4. d3 {[%clk 0:03:00.7]} 4... Bc5 {[%clk 0:02:53.8]} 5. O-O {[%clk
0:03:01.3]} 5... d6 {[%clk 0:02:53.7]} 6. c3 {[%clk 0:03:00.8]} 6... a6 {[%clk
0:02:53.9]} 7. b4 {[%clk 0:03:00.8]} 7... Ba7 {[%clk 0:02:53.6]} 8. Be3 {[%clk
0:02:59.4]} 8... Bxe3 {[%clk 0:02:52.6]} 9. fxe3 {[%clk 0:02:59.8]} 9... Ne7
{[%clk 0:02:53.5]} 10. Bb3 {[%clk 0:02:59.7]} 10... Ng6 {[%clk 0:02:53.7]} 11.
Nbd2 {[%clk 0:02:57.1]} 11... O-O {[%clk 0:02:53.9]} 12. Qe1 {[%clk 0:02:57.3]}
12... Be6 {[%clk 0:02:54]} 13. h3 {[%clk 0:02:57.3]} 13... Bxb3 {[%clk
0:02:52.4]} 14. axb3 {[%clk 0:02:57.1]} 14... c6 {[%clk 0:02:44.8]} 15. Qg3
{[%clk 0:02:49.3]} 15... a5 {[%clk 0:02:43.6]} 16. bxa5 {[%clk 0:02:47.4]} 16...
Rxa5 {[%clk 0:02:44.5]} 17. b4 {[%clk 0:02:48]} 17... Ra8 {[%clk 0:02:38.9]} 18.
Nc4 {[%clk 0:02:47]} 18... Qc7 {[%clk 0:02:19.8]} 19. Qf2 {[%clk 0:02:39.7]}
19... d5 {[%clk 0:02:15]} 20. Ncd2 {[%clk 0:02:39.9]} 20... dxe4 {[%clk
0:02:11.7]} 21. Nxe4 {[%clk 0:02:40.4]} 21... Nxe4 {[%clk 0:02:11.5]} 22. dxe4
{[%clk 0:02:41.3]} 22... f6 {[%clk 0:02:04.7]} 23. Ra2 {[%clk 0:02:39.3]} 23...
Qf7 {[%clk 0:02:00.7]} 24. Rfa1 {[%clk 0:02:37.1]} 24... Rad8 {[%clk 0:02:01.1]}
25. Ra7 {[%clk 0:02:36.5]} 25... Rd7 {[%clk 0:02:00.7]} 26. Qa2 {[%clk 0:02:32]}
26... Qxa2 {[%clk 0:01:58.1]} 27. R1xa2 {[%clk 0:02:32.9]} 27... Rfd8 {[%clk
0:01:56.7]} 28. Kf2 {[%clk 0:02:32.6]} 28... h5 {[%clk 0:01:49.2]} 29. Ke2
{[%clk 0:02:32.7]} 29... Kf7 {[%clk 0:01:48.3]} 30. Rd2 {[%clk 0:02:32.3]} 30...
Ke6 {[%clk 0:01:43.7]} 31. Rxb7 {[%clk 0:02:31.1]} 31... Rxb7 {[%clk 0:01:29.6]}
32. Rxd8 {[%clk 0:02:30.7]} 32... c5 {[%clk 0:01:29.1]} 33. bxc5 {[%clk
0:02:27.3]} 33... Rc7 {[%clk 0:01:28.6]} 34. Rd5 {[%clk 0:02:26.1]} 34... Ne7
{[%clk 0:01:26.1]} 35. c4 {[%clk 0:02:19.2]} 35... Ra7 {[%clk 0:01:10.5]} 36.
Rd6+ {[%clk 0:02:13.5]} 36... Kf7 {[%clk 0:01:10.1]} 37. Nd2 {[%clk 0:02:13.8]}
37... Rc7 {[%clk 0:00:53.7]} 38. Nb3 {[%clk 0:02:13.4]} 38... h4 {[%clk
0:00:54]} 39. Kd3 {[%clk 0:02:12.7]} 39... Nc6 {[%clk 0:00:42.4]} 40. Kc3 {[%clk
0:02:09.8]} 40... Ke7 {[%clk 0:00:42.9]} 41. Nc1 {[%clk 0:02:04.9]} 41... Nd8
{[%clk 0:00:42.5]} 42. Nd3 {[%clk 0:02:04.3]} 42... Ne6 {[%clk 0:00:43]} 43. Rd5
{[%clk 0:02:03.9]} 43... Ng5 {[%clk 0:00:42.3]} 44. Nf2 {[%clk 0:01:57.4]} 44...
Ra7 {[%clk 0:00:40.2]} 45. Kb4 {[%clk 0:01:53.5]} 45... Rb7+ {[%clk 0:00:35]}
46. Ka5 {[%clk 0:01:53.4]} 46... Rb2 {[%clk 0:00:33.9]} 47. c6 {[%clk
0:01:53.1]} 47... Ne6 {[%clk 0:00:19.8]} 48. Nd3 {[%clk 0:01:53.4]} 48... Rxg2
{[%clk 0:00:16.7]} 49. Kb6 {[%clk 0:01:45.7]} 49... Rg1 {[%clk 0:00:12.5]} 50.
c7 {[%clk 0:01:44.9]} 50... Rb1+ {[%clk 0:00:12.2]} 51. Kc6 {[%clk 0:01:45]}
51... Nxc7 {[%clk 0:00:13.1]} 52. Kxc7 {[%clk 0:01:45.3]} 52... g5 {[%clk
0:00:13.5]} 53. Rd7+ {[%clk 0:01:44.8]} 53... Kf8 {[%clk 0:00:12.2]} 54. Nf2
{[%clk 0:01:37.1]} 54... Rc1 {[%clk 0:00:12.1]} 55. Kd6 {[%clk 0:01:33.2]} 55...
Rxc4 {[%clk 0:00:12.2]} 56. Ke6 {[%clk 0:01:32.5]} 56... Rc6+ {[%clk 0:00:11.8]}
57. Kf5 {[%clk 0:01:28.6]} 57... Ke8 {[%clk 0:00:12.1]} 58. Ra7 {[%clk
0:01:27.2]} 58... Kf8 {[%clk 0:00:12.2]} 59. Ng4 {[%clk 0:01:27.4]} 59... Rc1
{[%clk 0:00:10.7]} 60. Nxf6 {[%clk 0:01:26.1]} 60... g4 {[%clk 0:00:07.2]} 61.
Kg6 {[%clk 0:01:24.8]} 1-0

[Event "*** Titled Tuesday Blitz"]
[Site "Chess.com"]
[Date "2020.03.03"]
[Round "7"]
[White "MartinCerveny"]
[Black "platy3"]
[Result "0-1"]
[WhiteElo "2622"]
[BlackElo "2863"]
[TimeControl "180+1"]
[EndTime "10:13:23 PST"]
[Termination "platy3 won by resignation"]

1. d4 {[%clk 0:03:00.9]} 1... Nf6 {[%clk 0:02:52.3]} 2. Nf3 {[%clk 0:03:00.9]}
2... g6 {[%clk 0:01:20.5]} 3. b4 {[%clk 0:02:59.3]} 3... Bg7 {[%clk 0:01:20.1]}
4. Bb2 {[%clk 0:02:59.7]} 4... O-O {[%clk 0:01:20.1]} 5. e3 {[%clk 0:03:00]}
5... a5 {[%clk 0:01:19.2]} 6. b5 {[%clk 0:03:00.3]} 6... b6 {[%clk 0:01:19.7]}
7. a4 {[%clk 0:02:59.7]} 7... Bb7 {[%clk 0:01:20.4]} 8. Be2 {[%clk 0:02:57.1]}
8... d6 {[%clk 0:01:21.3]} 9. O-O {[%clk 0:02:56.5]} 9... Nbd7 {[%clk
0:01:22.2]} 10. c4 {[%clk 0:02:56]} 10... e5 {[%clk 0:01:15.2]} 11. d5 {[%clk
0:02:43.8]} 11... Nc5 {[%clk 0:01:14.5]} 12. Nbd2 {[%clk 0:02:40.7]} 12... Nfd7
{[%clk 0:01:14.9]} 13. e4 {[%clk 0:02:29.3]} 13... f5 {[%clk 0:01:15.8]} 14.
exf5 {[%clk 0:02:20.4]} 14... gxf5 {[%clk 0:01:16.7]} 15. Nb3 {[%clk 0:02:18.1]}
15... Nxb3 {[%clk 0:01:14.1]} 16. Qxb3 {[%clk 0:02:17.5]} 16... Nc5 {[%clk
0:01:15]} 17. Qc2 {[%clk 0:02:15.2]} 17... Qd7 {[%clk 0:01:15.9]} 18. Nd2 {[%clk
0:02:14]} 18... e4 {[%clk 0:01:15.3]} 19. Bxg7 {[%clk 0:02:08.3]} 19... Qxg7
{[%clk 0:01:16.2]} 20. Ra3 {[%clk 0:02:07.7]} 20... Kh8 {[%clk 0:01:14.3]} 21.
Rg3 {[%clk 0:02:07.7]} 21... Qe5 {[%clk 0:01:14.8]} 22. f3 {[%clk 0:01:46.1]}
22... f4 {[%clk 0:01:12.1]} 23. Rh3 {[%clk 0:01:45.9]} 23... Bc8 {[%clk
0:01:11.6]} 24. Rh4 {[%clk 0:01:38.5]} 24... Qg5 {[%clk 0:01:11.2]} 25. g3
{[%clk 0:01:01.5]} 25... fxg3 {[%clk 0:00:58.6]} 26. Rxe4 {[%clk 0:01:01.5]}
26... gxh2+ {[%clk 0:00:55.2]} 27. Kh1 {[%clk 0:01:01]} 27... Nxe4 {[%clk
0:00:54.1]} 28. Nxe4 {[%clk 0:01:01.7]} 28... Qe5 {[%clk 0:00:54.3]} 29. Rf2
{[%clk 0:00:55.5]} 29... Bf5 {[%clk 0:00:53.5]} 30. Bd3 {[%clk 0:00:55.7]} 30...
Rg8 {[%clk 0:00:50.8]} 31. Rxh2 {[%clk 0:00:35]} 31... Qa1+ {[%clk 0:00:48.6]}
32. Qb1 {[%clk 0:00:35]} 32... Qxb1+ {[%clk 0:00:48.8]} 33. Bxb1 {[%clk
0:00:35.9]} 33... Raf8 {[%clk 0:00:47.5]} 34. Bd3 {[%clk 0:00:33.9]} 34... Rg6
{[%clk 0:00:38.8]} 35. Rh5 {[%clk 0:00:31.9]} 35... Kg7 {[%clk 0:00:36.9]} 36.
Kh2 {[%clk 0:00:25.6]} 36... Rh6 {[%clk 0:00:35.8]} 37. Rxh6 {[%clk 0:00:24.9]}
37... Kxh6 {[%clk 0:00:36.7]} 38. Kg3 {[%clk 0:00:25.8]} 38... Kg6 {[%clk
0:00:35.4]} 39. Be2 {[%clk 0:00:20]} 39... Bxe4 {[%clk 0:00:34.5]} 40. fxe4
{[%clk 0:00:20]} 40... Kg5 {[%clk 0:00:35.4]} 41. Bg4 {[%clk 0:00:18]} 41... h5
{[%clk 0:00:34.9]} 42. Be6 {[%clk 0:00:17.4]} 42... h4+ {[%clk 0:00:35.2]} 43.
Kh3 {[%clk 0:00:17.3]} 43... Rf3+ {[%clk 0:00:34.9]} 44. Kh2 {[%clk 0:00:17.7]}
44... Rc3 {[%clk 0:00:35.5]} 45. e5 {[%clk 0:00:16.9]} 45... dxe5 {[%clk
0:00:35.5]} 46. c5 {[%clk 0:00:16.4]} 46... Rxc5 {[%clk 0:00:34.1]} 0-1

[Event "*** Titled Tuesday Blitz"]
[Site "Chess.com"]
[Date "2020.03.03"]
[Round "7"]
[White "JakeCarlosBanawa"]
[Black "saraswathii"]
[Result "1-0"]
[WhiteElo "2390"]
[BlackElo "2225"]
[TimeControl "180+1"]
[EndTime "10:13:25 PST"]
[Termination "JakeCarlosBanawa won by resignation"]

1. d4 {[%clk 0:02:34.5]} 1... Nc6 {[%clk 0:02:51.2]} 2. Nf3 {[%clk 0:02:29.7]}
2... d5 {[%clk 0:02:50.7]} 3. Bf4 {[%clk 0:02:23.1]} 3... Nf6 {[%clk 0:02:49.5]}
4. e3 {[%clk 0:02:22.7]} 4... a6 {[%clk 0:02:48]} 5. Be2 {[%clk 0:02:19.5]} 5...
Bf5 {[%clk 0:02:47.1]} 6. O-O {[%clk 0:02:18.7]} 6... e6 {[%clk 0:02:46.9]} 7.
c4 {[%clk 0:02:18.4]} 7... Bd6 {[%clk 0:02:45.9]} 8. Bg3 {[%clk 0:02:13.9]} 8...
Ne4 {[%clk 0:02:44.6]} 9. Nc3 {[%clk 0:02:12.2]} 9... Nxc3 {[%clk 0:02:44.2]}
10. bxc3 {[%clk 0:02:11.7]} 10... O-O {[%clk 0:02:43.1]} 11. cxd5 {[%clk
0:02:06.7]} 11... exd5 {[%clk 0:02:42.3]} 12. Qb3 {[%clk 0:02:06.2]} 12... Bxg3
{[%clk 0:02:41.9]} 13. hxg3 {[%clk 0:02:03.3]} 13... Na5 {[%clk 0:02:41.8]} 14.
Qb4 {[%clk 0:02:00.5]} 14... b6 {[%clk 0:02:40.9]} 15. Ne5 {[%clk 0:01:45.6]}
15... Qd6 {[%clk 0:02:39.8]} 16. Rac1 {[%clk 0:01:33.4]} 16... Rfc8 {[%clk
0:02:20.6]} 17. g4 {[%clk 0:01:32.6]} 17... Bg6 {[%clk 0:02:15.3]} 18. g5 {[%clk
0:01:22.9]} 18... c5 {[%clk 0:02:11.9]} 19. Qa3 {[%clk 0:01:18.5]} 19... Rd8
{[%clk 0:02:00.1]} 20. Nxg6 {[%clk 0:00:58.2]} 20... hxg6 {[%clk 0:01:58.5]} 21.
Rb1 {[%clk 0:00:54.9]} 21... cxd4 {[%clk 0:01:39.1]} 22. Qxd6 {[%clk 0:00:53.1]}
22... Rxd6 {[%clk 0:01:40]} 23. cxd4 {[%clk 0:00:53.2]} 23... b5 {[%clk
0:01:39.1]} 24. a4 {[%clk 0:00:50.7]} 24... bxa4 {[%clk 0:01:25.6]} 25. Ra1
{[%clk 0:00:50.4]} 25... Nb3 {[%clk 0:01:24]} 26. Rxa4 {[%clk 0:00:48.5]} 26...
Nd2 {[%clk 0:01:23.6]} 27. Rfa1 {[%clk 0:00:44.9]} 27... Ne4 {[%clk 0:01:20.9]}
28. Bxa6 {[%clk 0:00:35.2]} 28... Nxg5 {[%clk 0:01:13]} 29. Bb7 {[%clk
0:00:35.1]} 29... Rad8 {[%clk 0:01:02.7]} 30. Ra5 {[%clk 0:00:33.2]} 30... Ne4
{[%clk 0:00:56.6]} 31. Rc1 {[%clk 0:00:31.7]} 31... f6 {[%clk 0:00:50.4]} 32.
Rc7 {[%clk 0:00:29.5]} 32... Ng5 {[%clk 0:00:39.4]} 33. Bc8 {[%clk 0:00:21.4]}
33... Ne4 {[%clk 0:00:20.5]} 34. Raa7 {[%clk 0:00:20.6]} 34... f5 {[%clk
0:00:14.3]} 35. Rxg7+ {[%clk 0:00:19.6]} 35... Kf8 {[%clk 0:00:14.3]} 36. Raf7+
{[%clk 0:00:14.5]} 36... Ke8 {[%clk 0:00:12]} 37. Re7+ {[%clk 0:00:13.9]} 37...
Kf8 {[%clk 0:00:11.1]} 38. Be6 {[%clk 0:00:13.4]} 38... Nf6 {[%clk 0:00:07.2]}
39. Rgf7+ {[%clk 0:00:12.2]} 1-0

[Event "*** Titled Tuesday Blitz"]
[Site "Chess.com"]
[Date "2020.03.03"]
[Round "7"]
[White "guillembaches"]
[Black "Nalatac"]
[Result "1-0"]
[WhiteElo "2406"]
[BlackElo "2277"]
[TimeControl "180+1"]
[EndTime "10:13:34 PST"]
[Termination "guillembaches won on time"]

1. e4 {[%clk 0:03:00.9]} 1... e5 {[%clk 0:02:59.9]} 2. Nf3 {[%clk 0:03:01]} 2...
Nc6 {[%clk 0:02:59.7]} 3. Nc3 {[%clk 0:03:01.3]} 3... Nf6 {[%clk 0:02:59.6]} 4.
d4 {[%clk 0:03:01.8]} 4... exd4 {[%clk 0:02:57.8]} 5. Nxd4 {[%clk 0:03:02.7]}
5... Bb4 {[%clk 0:02:58]} 6. Nxc6 {[%clk 0:03:02.6]} 6... bxc6 {[%clk
0:02:58.9]} 7. Bd3 {[%clk 0:03:02.8]} 7... O-O {[%clk 0:02:57.1]} 8. O-O {[%clk
0:03:01.7]} 8... d5 {[%clk 0:02:57.3]} 9. Bd2 {[%clk 0:03:02]} 9... Re8 {[%clk
0:02:41.1]} 10. Nxd5 {[%clk 0:03:01.3]} 10... cxd5 {[%clk 0:01:55.9]} 11. Bxb4
{[%clk 0:03:00.3]} 11... dxe4 {[%clk 0:01:56.2]} 12. Bb5 {[%clk 0:02:59.3]}
12... Bd7 {[%clk 0:01:51.8]} 13. Bxd7 {[%clk 0:02:58.8]} 13... Nxd7 {[%clk
0:01:33.8]} 14. Re1 {[%clk 0:02:49.7]} 14... Nb6 {[%clk 0:01:27.2]} 15. Qxd8
{[%clk 0:02:36.7]} 15... Raxd8 {[%clk 0:01:25.6]} 16. Rad1 {[%clk 0:02:36.6]}
16... f5 {[%clk 0:01:12.5]} 17. b3 {[%clk 0:02:18.7]} 17... Kf7 {[%clk
0:01:03.9]} 18. c4 {[%clk 0:02:15.9]} 18... g6 {[%clk 0:00:54.2]} 19. h4 {[%clk
0:02:10.2]} 19... Nd7 {[%clk 0:00:43.5]} 20. Bc3 {[%clk 0:02:04.7]} 20... Nc5
{[%clk 0:00:41.9]} 21. Kf1 {[%clk 0:01:42]} 21... Nd3 {[%clk 0:00:38.4]} 22. Re2
{[%clk 0:01:40.8]} 22... c5 {[%clk 0:00:27.3]} 23. g3 {[%clk 0:01:37.4]} 23...
Re6 {[%clk 0:00:24.7]} 24. Bd2 {[%clk 0:01:24.5]} 24... Red6 {[%clk 0:00:12]}
25. Bg5 {[%clk 0:01:21.8]} 25... R8d7 {[%clk 0:00:11]} 26. Red2 {[%clk
0:01:20.6]} 26... Ke6 {[%clk 0:00:10.4]} 27. Be3 {[%clk 0:01:20.1]} 27... Rd8
{[%clk 0:00:04.8]} 28. Ke2 {[%clk 0:01:17.2]} 28... R8d7 {[%clk 0:00:04.3]} 29.
Bg5 {[%clk 0:01:12.5]} 29... Ne5 {[%clk 0:00:02.2]} 30. Rxd6+ {[%clk 0:01:05.3]}
30... Rxd6 {[%clk 0:00:03.1]} 31. Rxd6+ {[%clk 0:01:05.4]} 31... Kxd6 {[%clk
0:00:04]} 32. Bf4 {[%clk 0:01:05.6]} 32... Ke6 {[%clk 0:00:04.3]} 33. Ke3 {[%clk
0:00:52.6]} 33... Nc6 {[%clk 0:00:02.9]} 34. Bh6 {[%clk 0:00:46.7]} 34... Nb4
{[%clk 0:00:02.7]} 35. Bf8 {[%clk 0:00:42.4]} 35... Nxa2 {[%clk 0:00:01.9]} 36.
Bxc5 {[%clk 0:00:41.1]} 36... Nc1 {[%clk 0:00:02.5]} 37. b4 {[%clk 0:00:37.4]}
37... Nd3 {[%clk 0:00:03.2]} 38. Bf8 {[%clk 0:00:32.7]} 38... Ne5 {[%clk
0:00:02.9]} 39. Kd4 {[%clk 0:00:27.5]} 39... Nd7 {[%clk 0:00:00.2]} 40. Bh6
{[%clk 0:00:22.8]} 1-0

[Event "*** Titled Tuesday Blitz"]
[Site "Chess.com"]
[Date "2020.03.03"]
[Round "7"]
[White "TwentyHourADay"]
[Black "Mikhail_Golubev"]
[Result "0-1"]
[WhiteElo "2313"]
[BlackElo "2526"]
[TimeControl "180+1"]
[EndTime "10:13:36 PST"]
[Termination "Mikhail_Golubev won by resignation"]

1. e4 {[%clk 0:03:00.9]} 1... c5 {[%clk 0:02:59.6]} 2. Nc3 {[%clk 0:03:00.9]}
2... Nc6 {[%clk 0:02:58.5]} 3. Bb5 {[%clk 0:03:00.5]} 3... Nd4 {[%clk
0:02:57.8]} 4. Nf3 {[%clk 0:03:00.8]} 4... a6 {[%clk 0:02:56.5]} 5. Bd3 {[%clk
0:03:00.4]} 5... Nc6 {[%clk 0:02:54.6]} 6. O-O {[%clk 0:02:51.2]} 6... d6 {[%clk
0:02:53.7]} 7. h3 {[%clk 0:02:50.8]} 7... g6 {[%clk 0:02:52.2]} 8. a4 {[%clk
0:02:44.2]} 8... Bg7 {[%clk 0:02:51.5]} 9. Bc4 {[%clk 0:02:44.4]} 9... Nf6
{[%clk 0:02:48.1]} 10. d3 {[%clk 0:02:44.6]} 10... O-O {[%clk 0:02:47.4]} 11.
Ne2 {[%clk 0:02:44.6]} 11... e6 {[%clk 0:02:39.7]} 12. Ng3 {[%clk 0:02:44.3]}
12... d5 {[%clk 0:02:39.1]} 13. Ba2 {[%clk 0:02:42]} 13... dxe4 {[%clk
0:02:29.4]} 14. dxe4 {[%clk 0:02:38.6]} 14... Nd7 {[%clk 0:02:25.3]} 15. c3
{[%clk 0:02:32.9]} 15... Nde5 {[%clk 0:02:20.3]} 16. Be3 {[%clk 0:02:30.7]}
16... Nxf3+ {[%clk 0:02:06.4]} 17. Qxf3 {[%clk 0:02:28.7]} 17... Ne5 {[%clk
0:02:06.4]} 18. Qe2 {[%clk 0:02:28.1]} 18... b6 {[%clk 0:01:49.4]} 19. a5 {[%clk
0:02:24.5]} 19... bxa5 {[%clk 0:01:05.9]} 20. Bxc5 {[%clk 0:02:21.8]} 20... Re8
{[%clk 0:01:05.9]} 21. Bd4 {[%clk 0:02:12.1]} 21... Bd7 {[%clk 0:01:05.9]} 22.
f4 {[%clk 0:02:09.7]} 22... Bb5 {[%clk 0:01:03]} 23. Qe3 {[%clk 0:01:42.5]}
23... Bxf1 {[%clk 0:01:02.5]} 24. Rxf1 {[%clk 0:01:40.9]} 24... Nc6 {[%clk
0:00:56.2]} 25. Bxg7 {[%clk 0:01:37.1]} 25... Kxg7 {[%clk 0:00:56.1]} 26. Qc5
{[%clk 0:01:18.6]} 26... Rc8 {[%clk 0:00:54.4]} 27. f5 {[%clk 0:01:18]} 27...
exf5 {[%clk 0:00:30.8]} 28. exf5 {[%clk 0:01:04.9]} 28... Ne5 {[%clk 0:00:30.6]}
29. Qe3 {[%clk 0:00:52.8]} 29... Rb8 {[%clk 0:00:15.8]} 30. f6+ {[%clk
0:00:52.3]} 30... Kh8 {[%clk 0:00:15.5]} 31. Qh6 {[%clk 0:00:52.3]} 31... Rg8
{[%clk 0:00:15.4]} 32. Rf4 {[%clk 0:00:49.1]} 32... Qf8 {[%clk 0:00:11.7]} 33.
Qg5 {[%clk 0:00:45.6]} 33... Rb5 {[%clk 0:00:11.5]} 34. Kh1 {[%clk 0:00:25]}
34... Nd3 {[%clk 0:00:11.5]} 35. Qg4 {[%clk 0:00:21]} 35... Nxf4 {[%clk
0:00:10.9]} 36. Qxf4 {[%clk 0:00:21.2]} 36... Qb8 {[%clk 0:00:10.9]} 37. Qxb8
{[%clk 0:00:17.5]} 37... Rgxb8 {[%clk 0:00:10.1]} 38. Bxf7 {[%clk 0:00:18.4]}
38... Rf8 {[%clk 0:00:09.7]} 39. Bc4 {[%clk 0:00:18]} 39... Rxb2 {[%clk
0:00:08.5]} 40. Ne4 {[%clk 0:00:18.3]} 40... a4 {[%clk 0:00:08.7]} 41. Nd6
{[%clk 0:00:14]} 41... a3 {[%clk 0:00:08.3]} 42. Nf7+ {[%clk 0:00:14.4]} 42...
Rxf7 {[%clk 0:00:08]} 43. Bxf7 {[%clk 0:00:15.3]} 43... a2 {[%clk 0:00:08.3]}
0-1